Cogmind - Beta 15 @@@ ROGUE MODE // 2025.08.29 @ 15:54:13 Player: shapeshifter Result: Destroyed by S-43 Plague with Heavy Machine Gun Performance ------------- Evolutions (7) 3500 Regions Visited (19) 3800 Robots Destroyed (142) 710 Value Destroyed (7923) 7923 Prototype IDs (34) 680 Alien Tech Used (0) 0 Bonus (6680) 6680 TOTAL SCORE: 23293 Bonus ------- High Alert Combat Kills 968 Follower Combat Kills 1712 Entered Garrisons 400 Entered DSFs 500 Aligned with FarCom 300 Acquired ECA 300 Met Warlord at Base 500 MAIN.C Attacked Warlord 500 Warlord Defense Kills 1500 Cogmind --------- Core Integrity 0/1300 Matter 259/300 Energy 99/100 System Corruption 25% Temperature Cool (0) Movement Core (50) Location -3/Testing Parts ------- > --- POWER (3) -------- (None) > --- PROPULSION (6) --- (None) > --- UTILITY (8) ------ (None) > --- WEAPON (4) ------- Shock Maul > --- INVENTORY (5) ---- Experimental Cloaking Device Improved Powered Armor Improved Shield Generator Neutron Cannon Peak State ------------ > --- POWER ------------ Light Antimatter Reactor > --- PROPULSION ------- Armored Huge Wheel Armored Huge Wheel Armored Huge Wheel > --- UTILITY ---------- Huge Storage Unit Experimental Energy Well Improved Sensor Array Improved Signal Interpreter Experimental Target Analyzer Force Field > --- WEAPON ----------- Vortex Shotgun Vortex Shotgun Heavy Phase Cannon Hypervelocity Gauss Cannon > --- INVENTORY -------- Improved Medium Treads High-capacity Storage Unit Experimental Cloaking Device Improved Powered Armor Improved Powered Armor Experimental Focal Shield Force Field Advanced Remote Force Field System Mapper Decoy Drone Bay Army-in-a-Box Vortex Rifle Vortex Rifle Heavy Phase Cannon Dirty Datajack Dirty Datajack Improved Plasma Cutter Deploy-a-Sentry Deploy-a-Sentry [Rating: 109] Favorites ----------- Power Micro Nuclear Core Engine Ion Engine Power Core Micro Nuclear Core Reactor Light Antimatter Reactor Propulsion Light Treads Treads Light Treads Leg Carbon-fiber Leg Wheel Armored Huge Wheel Hover Unit Improved Linear Gravjet Utility Huge Storage Unit Device Improved Sensor Array Storage Huge Storage Unit Processor Improved Signal Interpreter Hackware System Mapper Protection Layered Medium Armor Plating Weapon Light Assault Rifle Energy Gun EM Pulse Gun Energy Cannon Heavy Phase Cannon Ballistic Gun Light Assault Rifle Ballistic Cannon AWS/Autocannon Launcher Shock Bomb Launcher Special Weapon Improved Plasma Cutter Impact Weapon Shock Maul Special Melee Weapon Dirty Datajack Build | -11 -10 -10 -10 -9 -8 -8 -8 -8 -7 -6 -6 -5 -5 -5 -5 -4 -4 -3 -3 ------- Run | Yrd Mat Min Exi Min Mat Gar Mat Gar Fac Fac DSF Fac Upp Upp War Pro Fac Res Tes Slots Evolved 14 | . . . . . 4 . . . 2 2 . 2 . . . . 2 2 . Power 2 | . . . . . . . . . . . . . . . . . 2 . . Propulsion 4 | . . . . . 2 . . . . . . 2 . . . . . . . Utility 6 | . . . . . . . . . 2 2 . . . . . . . 2 . Weapon 2 | . . . . . 2 . . . . . . . . . . . . . . Parts Attached 139 | 7 2 . 2 1 11 10 8 22 10 . 8 1 5 2 12 4 11 13 10 Power 11 | 1 . . . . 2 1 1 2 . . 1 . . 1 . . . 1 1 Engine 6 | 1 . . . . 1 . 1 1 . . 1 . . . . . . . 1 Core 3 | . . . . . 1 1 . 1 . . . . . . . . . . . Reactor 2 | . . . . . . . . . . . . . . 1 . . . 1 . Propulsion 43 | 2 2 . . . 2 2 5 7 2 . 1 1 . . . 2 5 9 3 Treads 7 | 2 . . . . 2 2 . . . . . . . . . 1 . . . Leg 24 | . . . . . . . 4 7 . . . . . . . 1 1 9 2 Wheel 11 | . 2 . . . . . 1 . 2 . 1 1 . . . . 3 . 1 Hover 1 | . . . . . . . . . . . . . . . . . 1 . . Flight . | . . . . . . . . . . . . . . . . . . . . Utility 42 | 2 . . 2 1 2 2 2 2 4 . 5 . 2 1 7 1 3 3 3 Device 13 | 1 . . . . . . 1 . 1 . 1 . 1 . 4 . 1 1 2 Storage 8 | 1 . . 2 1 . . . . 1 . . . . . 1 1 . . 1 Processor 2 | . . . . . . . . . 1 . . . . . 1 . . . . Hackware 1 | . . . . . . . . . . . . . . . . . 1 . . Protection 18 | . . . . . 2 2 1 2 1 . 4 . 1 1 1 . 1 2 . Artifact . | . . . . . . . . . . . . . . . . . . . . Weapon 43 | 2 . . . . 5 5 . 11 4 . 1 . 3 . 5 1 3 . 3 Energy Gun 12 | 1 . . . . 2 1 . 1 . . . . 1 . 4 1 . . 1 Energy Cannon 3 | . . . . . . . . . 1 . 1 . 1 . . . . . . Ballistic Gun 18 | 1 . . . . 3 3 . 9 1 . . . . . . . . . 1 Ballistic Cannon 3 | . . . . . . . . 1 . . . . 1 . . . 1 . . Launcher 3 | . . . . . . 1 . . 2 . . . . . . . . . . Special Weapon 1 | . . . . . . . . . . . . . . . 1 . . . . Impact Weapon 1 | . . . . . . . . . . . . . . . . . . . 1 Slashing Weapon . | . . . . . . . . . . . . . . . . . . . . Piercing Weapon . | . . . . . . . . . . . . . . . . . . . . Special Melee Weapon 2 | . . . . . . . . . . . . . . . . . 2 . . Unidentified Prototypes 11 | . . . . . . . . . . . . . . . 6 . 2 1 2 Corrupted Parts 3 | . . . . . . . . 1 . . . . . . . . . 1 1 System Corruption 23 | . . . . . . . . 3 . . . . . . . . . 9 11 Parts Lost 51 | . . . . . . 2 . 9 . . . . . 2 3 7 2 14 12 Power 5 | . . . . . . . . 2 . . . . . . 1 . . 1 1 Propulsion 23 | . . . . . . 2 . 2 . . . . . . 1 2 2 7 7 Utility 9 | . . . . . . . . . . . . . . 2 . 2 . 3 2 Weapon 14 | . . . . . . . . 5 . . . . . . 1 3 . 3 2 Highest Loss Streak 12 | . . . . . . 2 . 5 . . . . . 2 3 3 2 12 7 To Critical Strikes . | . . . . . . . . . . . . . . . . . . . . Average Backups 12 | 3 4 6 6 5 11 12 13 13 14 16 13 13 13 12 16 14 9 12 13 Power . | . 1 1 . . . . . . . . . 1 1 1 . . . . . Propulsion 1 | 1 2 2 1 . . . . 1 3 2 1 1 1 1 . . . 3 1 Utility 7 | . 1 3 4 3 7 6 6 7 8 9 7 7 8 7 9 10 8 9 10 Weapon 2 | . . . . 1 2 4 6 3 1 3 2 2 . . 2 . . . . Tool/Special . | . . . . . . . . . . . . . . . . . . . . Unused Backups 36 | 1 . . 6 . 3 3 3 . 4 . 4 1 . . 4 . . . 7 Power 2 | . . . 1 . . . . . . . . . . . 1 . . . . Propulsion 4 | . . . . . 1 . . . 1 . 1 . . . 1 . . . . Utility 20 | . . . 5 . . 2 2 . 3 . 2 . . . 1 . . . 5 Weapon 7 | 1 . . . . 2 1 . . . . 1 . . . . . . . 2 Tool/Special 3 | . . . . . . . 1 . . . . 1 . . 1 . . . . Average Slot Usage (%) 82 | . 100 100 100 100 88 97 95 90 81 66 70 70 77 81 81 51 42 45 29 Engine 3 | . 14 14 14 14 2 3 5 3 . . 4 5 5 1 . . . . . Core 2 | . . . . . 6 5 3 5 7 6 1 . . . . . . . . Treads 11 | . 18 . 11 28 32 34 23 . . . . . . . . 3 1 . . Leg 9 | . . . . . . . 4 35 22 . . . . . . 3 3 18 14 Wheel 5 | . 9 28 16 . . . 4 . 4 20 13 17 17 17 16 4 4 2 . Device 4 | . 14 14 14 14 1 . . . 5 6 6 5 5 5 9 4 . 1 . Storage 8 | . 14 14 14 14 9 9 9 9 7 6 6 5 5 5 9 11 10 7 3 Processor 2 | . . . . . . . . . 5 6 6 5 5 5 8 11 4 . . Protection 6 | . . . . . 7 9 8 9 7 6 16 17 17 16 4 . 2 3 3 Energy Gun 4 | . 14 14 14 14 9 . . 5 2 . . . 3 5 6 3 . . 1 Energy Cannon 1 | . . . . . . . . . 1 . 4 5 9 11 9 5 . . . Ballistic Gun 14 | . 14 14 14 14 18 35 36 18 8 . . . . . . . . . 2 Ballistic Cannon 2 | . . . . . . . . 4 4 6 6 5 4 5 4 . 1 . . Peak Build Rating 109 | 7 7 8 18 20 31 33 43 67 75 71 90 101 101 90 109 88 75 97 60 Average Rating 51 | 5 7 7 12 19 27 30 32 52 63 71 85 98 84 88 100 67 57 82 46 On Entrance 48 | . 7 7 8 18 20 31 29 43 45 71 71 90 101 88 90 88 48 69 42 Naked Turns . | . . . . . . . . . . . . . . . . . . . . Heaviest Build 180 | 15 15 15 30 90 101 101 99 161 157 156 177 180 145 151 151 118 72 132 59 Greatest Support 115 | 40 40 20 40 40 80 80 80 80 54 50 56 84 84 84 84 56 36 115 74 Greatest Overweight (x) 23 | . . . 1 2 1 1 8 2 5 3 3 2 1 1 2 3 23 1 2 Average Overweight (x) 1 | . . . . 1 1 1 3 1 2 3 2 2 1 1 1 2 1 . . Largest Inventory Capacity 25 | 8 8 8 15 25 25 25 25 25 25 25 25 25 25 25 25 25 20 20 20 Average Capacity 23 | 7 8 8 13 21 25 25 25 25 25 25 25 25 25 25 25 24 20 20 18 Most Carried 25 | 6 6 8 15 20 25 25 25 25 25 25 25 25 25 24 25 25 20 20 17 Average Carried 21 | 3 4 6 12 17 23 24 24 24 24 25 24 23 23 21 24 21 15 16 13 Final Capacity 25 | 8 8 8 15 25 25 25 25 25 25 25 25 25 25 25 25 20 20 20 5 Final Carried 25 | 4 6 8 15 20 24 25 25 24 25 25 25 25 24 24 25 20 13 12 4 Class Distribution -------------------- 38% | Scavenger-Skirmisher 28% | Mutant 14% | Skirmisher 13% | Tank 3% | Hacker-Mutant Dominant Class ---------------- Mutant | -10/Materials Mutant | -10/Mines Mutant | -10/Exiles Mutant | -9/Mines Skirmisher | -8/Materials Scavenger-Skirmisher | -8/Garrison Scavenger-Skirmisher | -8/Materials Scavenger-Skirmisher | -8/Garrison Scavenger-Skirmisher | -7/Factory Scavenger-Skirmisher | -6/Factory Tank | -6/DSF Tank | -5/Factory Tank | -5/Upper Caves Tank | -5/Upper Caves Skirmisher | -5/Warlord Mutant | -4/Proximity Caves Hacker-Mutant | -4/Factory Hacker-Mutant | -3/Research Mutant | -3/Testing Resources | -11 -10 -10 -10 -9 -8 -8 -8 -8 -7 -6 -6 -5 -5 -5 -5 -4 -4 -3 -3 ----------- Run | Yrd Mat Min Exi Min Mat Gar Mat Gar Fac Fac DSF Fac Upp Upp War Pro Fac Res Tes Matter Collected 3811 | 279 . . 90 40 244 678 224 853 499 . 100 10 140 112 140 40 31 193 138 Remotely . | . . . . . . . . . . . . . . . . . . . . Salvage Created 5131 | 72 . . . . 380 859 246 1088 682 . 288 103 89 133 450 346 56 . 339 Parts 248 | 5 . . . . 18 47 12 74 29 . 15 6 4 5 14 13 4 . 2 Haulers Intercepted 2 | . . . . . . . 1 . 1 . . . . . . . . . . Recyclers Shooed 3 | . . . . . 2 . . . 1 . . . . . . . . . . Parts Field Recycled . | . . . . . . . . . . . . . . . . . . . . Retrieved Matter . | . . . . . . . . . . . . . . . . . . . . Parts Self-Destructed 28 | . . . . . . . . . . . . . 4 11 . 13 . . . Prevented 2 | . . . . . . . . . . . . . . 2 . . . . . Kills | -11 -10 -10 -10 -9 -8 -8 -8 -8 -7 -6 -6 -5 -5 -5 -5 -4 -4 -3 -3 ------- Run | Yrd Mat Min Exi Min Mat Gar Mat Gar Fac Fac DSF Fac Upp Upp War Pro Fac Res Tes Combat Hostiles Destroyed 129 | . . . . . 6 23 3 33 18 . 9 1 5 2 11 12 1 . 5 Guns 75 | . . . . . 6 23 3 25 2 . . . . . 8 8 . . . Cannons 39 | . . . . . . . . 8 14 . 8 1 5 2 . 1 . . . AOE 10 | . . . . . . . . . 2 . 1 . . . 3 3 1 . . Classes Destroyed 18 | 2 . . . . 3 1 2 2 5 . 1 . . . 1 . 1 . . Worker 2 | . . . . . . . . . 1 . . . . . . . . . 1 Builder 1 | . . . . . . . . . . . . . . . . . 1 . . Tunneler 1 | 1 . . . . . . . . . . . . . . . . . . . Hauler 2 | . . . . . . . 1 . 1 . . . . . . . . . . Recycler 1 | 1 . . . . . . . . . . . . . . . . . . . Operator 2 | . . . . . . . . . 1 . . 1 . . . . . . . Watcher 3 | . . . . . . . 1 . . . . 2 . . . . . . . Swarmer 40 | . . . . . . 10 . 12 3 . 4 . 4 . . 7 . . . Grunt 51 | . . . . . 3 10 1 14 7 . . . . 1 7 3 . . 5 Brawler 2 | . . . . . 1 . 1 . . . . . . . . . . . . Duelist 2 | . . . . . . . . . 2 . . . . . . . . . . Protector 1 | . . . . . . . . . 1 . . . . . . . . . . Sentry 13 | . . . . . 3 3 1 2 2 . . 1 . 1 . . . . . Specialist 6 | . . . . . . . . 2 . . 3 . . . 1 . . . . Hunter 6 | . . . . . . . . . 2 . 1 . . . 1 2 . . . Programmer 6 | . . . . . . . . 3 1 . . . 1 . . . 1 . . Heavy 1 | . . . . . . . . . . . 1 . . . . . . . . Executioner 2 | . . . . . . . . . . . . . . . 2 . . . . Best Kill Streak 8 | 2 . . . . 3 5 1 5 8 . 3 2 4 1 7 5 1 . 5 Combat Bots Only 8 | . . . . . 3 5 1 5 8 . 3 1 4 1 7 5 1 . 5 Max Kills in Single Turn 2 | 1 . . . . 2 2 1 2 1 . 1 1 1 1 2 2 1 . 1 Gunslinging 1 | . . . . . . 1 . 1 . . . . . . . . . . . Exploded 2 | . . . . . . . . . 1 . 1 . . . 2 2 1 . . Melee . | . . . . . . . . . . . . . . . . . . . . Uniques/NPCs Destroyed . | . . . . . . . . . . . . . . . . . . . . Combat | -11 -10 -10 -10 -9 -8 -8 -8 -8 -7 -6 -6 -5 -5 -5 -5 -4 -4 -3 -3 -------- Run | Yrd Mat Min Exi Min Mat Gar Mat Gar Fac Fac DSF Fac Upp Upp War Pro Fac Res Tes Hostile Shots Fired 1207 | . . . . . 37 90 12 230 78 . 27 . 29 45 77 99 50 247 186 Missed 381 | . . . . . 17 16 6 51 27 . 9 . 10 8 29 39 13 98 58 Hits 826 | . . . . . 20 74 6 179 51 . 18 . 19 37 48 60 37 149 128 Melee 12 | . . . . . . . . . 3 . . . . . . . . 9 . Projectile 814 | . . . . . 20 74 6 179 48 . 18 . 19 37 48 60 37 140 128 Critical Strikes 38 | . . . . . . 2 . 9 3 . . . 1 3 . 2 1 8 9 Part Disruptions 2 | . . . . . . . . 1 . . . . . . . . . . 1 Damage Taken 13962 | . . . . . 292 989 91 2216 741 . 306 . 315 702 819 1032 758 2972 2729 Core 2428 | . . . . . 28 98 . 321 105 . 30 . . 119 108 219 89 485 826 Absorbed by Shields 342 | . . . . . . . . . . . . . . . 314 . 28 . . Ignored by Resistances 144 | . . . . . . . . 134 . . . . . . . . 10 . . Regen/Repaired (Parts) 84 | . . . . . . . . . . . . . . . 84 . . . . Core Remaining (%) 78 | 100 . . . 100 . . . 18 85 . 96 . . . . 55 92 . . Volleys Fired 296 | 3 3 . . . 22 55 15 86 25 . 9 2 12 6 17 25 13 . 3 Largest 4 | 2 1 . . . 4 4 4 4 4 . 1 1 4 2 2 2 1 . 2 Hottest 312 | 60 40 . . . 110 93 88 93 143 . 69 90 312 141 120 180 44 . 108 Shots Fired 865 | 6 3 . . . 60 179 59 290 106 . 31 7 25 12 33 36 13 . 5 Gun 710 | 6 3 . . . 60 178 59 274 61 . . . 2 . 32 30 . . 5 Cannon 148 | . . . . . . . . 16 40 . 31 7 23 12 1 6 12 . . Launcher 6 | . . . . . . 1 . . 5 . . . . . . . . . . Special 1 | . . . . . . . . . . . . . . . . . 1 . . Kinetic 693 | 3 . . . . 38 175 59 270 86 . 22 5 14 6 . . 12 . 3 Thermal 65 | . . . . . . 3 . 20 15 . . 2 11 6 1 6 1 . . Explosive 1 | . . . . . . 1 . . . . . . . . . . . . . Electromagnetic 44 | 3 3 . . . 22 . . . 5 . 9 . . . . . . . 2 Entropic 62 | . . . . . . . . . . . . . . . 32 30 . . . Robot Hit Streak 14 | 2 . . . . 11 13 5 12 12 . 14 6 4 4 8 7 3 . . Robot Miss Streak 9 | 1 . . . . 2 3 6 7 3 . 2 1 9 3 7 6 3 . . Penetration Max 1 | . . . . . . . . . . . . . . 1 . . . . . Secondary Targets 18 | . . . . . 1 8 . 7 . . . . . . 2 . . . . Max Gunslinging Chain 1 | . . . . . 1 1 . 1 . . . . . . 1 . . . . Autonomous 91 | . . . . . . . . 16 40 . 22 5 8 . . . . . . Shots Hit Robots 515 | 3 . . . . 43 92 30 151 66 . 25 4 10 6 27 21 18 1 18 Core Hits 252 | 2 . . . . 17 44 13 68 33 . 8 2 3 3 30 17 10 1 1 Critical Kills 3 | . . . . . . . . . . . . . 1 2 . . . . . Critical Parts Destroyed 21 | . . . . . . . . . . . . . . 1 8 4 . . 8 Critical Strikes 38 | . . . . . 1 . . 3 5 . 3 . 2 3 8 4 1 . 8 Burn 2 | . . . . . . . . 1 1 . . . . . . . . . . Destroy 5 | . . . . . 1 . . . . . . . 1 3 . . . . . Blast 11 | . . . . . . . . 2 4 . 3 . 1 . . . 1 . . Smash 8 | . . . . . . . . . . . . . . . . . . . 8 Detonate 12 | . . . . . . . . . . . . . . . 8 4 . . . Melee Attacks 38 | . . . . . . . . . . . . . . . . . 13 1 24 Impact 24 | . . . . . . . . . . . . . . . . . . . 24 Slashing . | . . . . . . . . . . . . . . . . . . . . Piercing 14 | . . . . . . . . . . . . . . . . . 13 1 . Sneak Attacks 8 | . . . . . . . . . . . . . . . . . 7 1 . Combat Hostiles 6 | . . . . . . . . . . . . . . . . . 6 . . Follow-up Attacks . | . . . . . . . . . . . . . . . . . . . . Damage Inflicted 17895 | 42 . . . . 670 1397 402 2746 3784 . 1753 357 667 125 3055 1468 392 6 1031 Guns 6962 | 42 . . . . 627 1397 402 1546 458 . . . 30 . 1608 852 . . . Cannons 7192 | . . . . . . . . 1200 2906 . 1718 357 637 125 . 106 143 . . Explosions 2648 | . . . . . 43 . . . 420 . 35 . . . 1447 510 193 . . Melee 1048 | . . . . . . . . . . . . . . . . . 40 6 1002 Ramming 29 | . . . . . . . . . . . . . . . . . . . 29 Kinetic 10795 | . . . . . 417 1397 402 2682 3194 . 1584 357 565 54 . . 143 . . Thermal 3014 | . . . . . 43 . . 64 427 . 35 . 102 71 1447 616 209 . . Explosive . | . . . . . . . . . . . . . . . . . . . . Electromagnetic 549 | 42 . . . . 210 . . . 163 . 134 . . . . . . . . Impact 1002 | . . . . . . . . . . . . . . . . . . . 1002 Slashing . | . . . . . . . . . . . . . . . . . . . . Piercing 46 | . . . . . . . . . . . . . . . . . 40 6 . Entropic 2460 | . . . . . . . . . . . . . . . 1608 852 . . . Highest Corruption 25 | . . . . . . 2 2 7 . . . . 1 1 1 . . 10 25 Average Corruption 3 | . . . . . . 1 1 4 . . . . 1 1 1 . . 7 12 Corruption Purged 2 | . . . . . . . 2 . . . . . . . . . . . . Corruption Blocked . | . . . . . . . . . . . . . . . . . . . . Effects 98 | . . . . . . 14 7 43 . . . . . 5 1 . . 4 24 Message Errors 20 | . . . . . . 1 1 7 . . . . . 2 . . . 1 8 Matter Fused 26 | . . . . . . 3 1 15 . . . . . 2 . . . . 5 Heat Flow Errors 14 | . . . . . . 2 4 6 . . . . . 1 . . . . 1 Energy Discharges 17 | . . . . . . 6 . 8 . . . . . . . . . 2 1 Parts Rejected 2 | . . . . . . . . . . . . . . . . . . 1 1 Data Loss (minor) 5 | . . . . . . . . 4 . . . . . . . . . . 1 Data Loss (major) 5 | . . . . . . 1 . 2 . . . . . . . . . . 2 Misfires 3 | . . . . . . 1 . 1 . . . . . . 1 . . . . Alerts 2 | . . . . . . . . . . . . . . . . . . . 2 Misdirections 3 | . . . . . . . . . . . . . . . . . . . 3 Weapon Failures 1 | . . . . . . . 1 . . . . . . . . . . . . Overload Shots . | . . . . . . . . . . . . . . . . . . . . Overflow Damage 1504 | . . . . . . . . 142 392 . 128 101 207 . 26 . 15 . 493 Projectiles 970 | . . . . . . . . 142 392 . 128 101 207 . . . . . . Explosions 41 | . . . . . . . . . . . . . . . 26 . 15 . . Melee 493 | . . . . . . . . . . . . . . . . . . . 493 Knockbacks 27 | . . . . . . . . 4 12 . 3 . 2 . . . . . 6 Impact 4 | . . . . . . . . . . . . . . . . . . . 4 Kinetic 20 | . . . . . . . . 3 12 . 3 . 2 . . . . . . Secondary 3 | . . . . . . . . 1 . . . . . . . . . . 2 Self-Inflicted Damage 92 | . . . . . . 54 . . . . . . . . . 37 . . 1 Shots 2 | . . . . . . 1 . . . . . . . . . 1 . . . Rammed 2 | . . . . . . . . . . . . . . . . . . . 2 Targets Rammed 4 | . . . . . . . . . . . . . . . . . . . 4 Kicked 2 | . . . . . . . . . . . . . . . . . . . 2 Crushed . | . . . . . . . . . . . . . . . . . . . . Highest Temperature 524 | . . . . . 319 251 278 381 402 . . 100 524 330 163 150 . . 160 Average Temperature 112 | . . . . . 123 64 99 121 156 . . 56 198 152 67 62 . . 69 Received Heat Transfer 2747 | . . . . . 117 369 54 504 231 . . . . 39 154 70 108 524 577 Effects 19 | . . . . . 2 . . 5 1 . . . 9 2 . . . . . Shutdowns 3 | . . . . . . . . 1 . . . . 2 . . . . . . Energy Bleed 2 | . . . . . . . . 1 . . . . 1 . . . . . . Interference 7 | . . . . . 2 . . 2 . . . . 1 2 . . . . . Matter Decay 1 | . . . . . . . . . . . . . 1 . . . . . . Short Circuit 2 | . . . . . . . . 1 1 . . . . . . . . . . Damage (major) 4 | . . . . . . . . . . . . . 4 . . . . . . Siege Activations . | . . . . . . . . . . . . . . . . . . . . Martial Activations . | . . . . . . . . . . . . . . . . . . . . Shielding Activations . | . . . . . . . . . . . . . . . . . . . . Robots Disrupted . | . . . . . . . . . . . . . . . . . . . . Combat Hostiles . | . . . . . . . . . . . . . . . . . . . . Robots Corrupted 5 | . . . . . . . . . . . . . . . . . . . 5 Combat Hostiles 5 | . . . . . . . . . . . . . . . . . . . 5 Parts Fried 6 | . . . . . . . . . . . . . . . . . . . 6 Impact Corruptions 15 | . . . . . . . . . . . . . . . . . . . 15 Robots Melted . | . . . . . . . . . . . . . . . . . . . . Combat Hostiles . | . . . . . . . . . . . . . . . . . . . . Parts Melted 1 | . . . . . . . . . 1 . . . . . . . . . . Heat Transferred 2638 | . . . . . 50 . . 185 570 . 50 . 111 74 1050 411 137 . . Parts Sabotaged . | . . . . . . . . . . . . . . . . . . . . Parts Stolen . | . . . . . . . . . . . . . . . . . . . . Parts Stripped . | . . . . . . . . . . . . . . . . . . . . Power Chain Reactions 4 | . . . . . 1 . . . 2 . 1 . . . . . . . . Alert | -11 -10 -10 -10 -9 -8 -8 -8 -8 -7 -6 -6 -5 -5 -5 -5 -4 -4 -3 -3 ------- Run | Yrd Mat Min Exi Min Mat Gar Mat Gar Fac Fac DSF Fac Upp Upp War Pro Fac Res Tes Maximum Alert Level 5 | . . . . . . 3 2 5 4 2 2 1 . . . . . 2 1 Low Security (%) 34 | 100 100 100 . 100 100 12 . . . . . 5 . . . . 100 74 75 Level 1 17 | . . . . . . 19 55 14 . . 9 94 . . . . . 17 24 Level 2 19 | . . . . . . 38 44 25 . 100 90 . . . . . . 7 . Level 3 22 | . . . . . . 28 . 35 97 . . . . . . . . . . Level 4 5 | . . . . . . . . 22 2 . . . . . . . . . . Level 5 . | . . . . . . . . 1 . . . . . . . . . . . High Security . | . . . . . . . . . . . . . . . . . . . . Max Security . | . . . . . . . . . . . . . . . . . . . . Sterilizations 1 | . . . . . . . . . . . 1 . . . . . . . . Peak Influence 1609 | 10 12 . . 64 96 1054 513 1609 1105 535 626 328 . . . . 115 434 297 Initial 844 | . . . . . . 52 513 203 844 535 378 328 . . . . 60 3 156 Average 441 | 1 1 . . 5 16 517 399 827 929 535 474 261 . . . . 42 98 135 Influence Increases 6577 | 10 16 . . 95 230 1082 126 1636 669 5 248 90 120 211 235 324 222 784 474 Destroy 0b10 Robot/C 3460 | . . . . 80 140 500 60 820 420 . 180 20 100 160 220 280 100 280 100 Destroy 0b10 Robot/NC 80 | 10 . . . . . . 10 . 30 . . 15 . . . . 5 5 5 Destroy Leader 484 | . . . . 10 50 20 24 40 124 . 20 14 20 20 . 40 30 62 10 Allied During Kill 276 | . . . . 5 1 16 . 35 11 . . . . 16 . 4 9 179 . Successful Hack 172 | . 16 . . . 17 21 . 35 36 5 . 7 . . . . . 21 14 Disable Machine 165 | . . . . . 15 15 30 15 15 . . 15 . . . . 45 . 15 Anti-Garrison Action 1250 | . . . . . . 450 . 650 . . . . . . . . . 150 . Destroy Structure 135 | . . . . . 7 45 2 41 3 . 3 4 . . . . 18 12 . Partial Spotted 15 | . . . . . . . . . . . . 15 . . . . . . . Lose Combat Pursuer 540 | . . . . . . 15 . . 30 . 45 . . 15 15 . 15 75 330 Influence Decreases 6345 | 10 16 . . 95 150 108 867 340 1185 558 162 496 222 269 203 320 311 513 520 Entered New Map 2881 | . . . . . . 28 541 110 765 558 162 298 82 23 60 92 36 4 122 Time Decay 2354 | 10 16 . . 95 150 . 326 . 380 . . 198 140 206 113 198 165 79 278 Lost Part 400 | . . . . . . 20 . 90 . . . . . 20 30 30 20 70 120 Lost Ally 710 | . . . . . . 60 . 140 40 . . . . 20 . . 90 360 . Squads Dispatched 29 | . . . . . 1 . . . 13 . 2 1 . . . . 1 8 3 Investigation 6 | . . . . . . . . . 2 . . . . . . . . 3 1 Extermination 4 | . . . . . . . . . 1 . . 1 . . . . . 1 1 Reinforcement 7 | . . . . . . . . . 2 . 2 . . . . . 1 1 1 Assault 7 | . . . . . . . . . 5 . . . . . . . . 2 . Garrison 5 | . . . . . 1 . . . 3 . . . . . . . . 1 . Intercept . | . . . . . . . . . . . . . . . . . . . . Searches Triggered . | . . . . . . . . . . . . . . . . . . . . Construction Impeded 2 | . . . . . . . . . 1 . . . . . . . . 1 . Haulers Reinforced 1 | . . . . . . . . . 1 . . . . . . . . . . Active Scanning Responses . | . . . . . . . . . . . . . . . . . . . . Cargo Convoy Interrupts 1 | . . . . . . . . . 1 . . . . . . . . . . Stealth | -11 -10 -10 -10 -9 -8 -8 -8 -8 -7 -6 -6 -5 -5 -5 -5 -4 -4 -3 -3 --------- Run | Yrd Mat Min Exi Min Mat Gar Mat Gar Fac Fac DSF Fac Upp Upp War Pro Fac Res Tes Distress Signals 9 | . 3 . . . . . . . 2 . . 1 . . 1 . 1 1 . Communications Jammed . | . . . . . . . . . . . . . . . . . . . . Distress Signals . | . . . . . . . . . . . . . . . . . . . . Times Spotted 271 | . . . . 2 8 26 8 37 24 . 16 4 4 8 35 14 23 25 37 Peak Tracking Total 16 | . . . . 1 4 4 2 5 5 . 5 2 3 7 11 5 5 11 16 Tactical Retreats 20 | . . . . . . 1 . . 2 . 1 . . 1 1 . 1 2 11 Traps | -11 -10 -10 -10 -9 -8 -8 -8 -8 -7 -6 -6 -5 -5 -5 -5 -4 -4 -3 -3 ------- Run | Yrd Mat Min Exi Min Mat Gar Mat Gar Fac Fac DSF Fac Upp Upp War Pro Fac Res Tes Traps Triggered 16 | . . . . . . 4 . 11 . . . . . . . . 1 . . Indirectly . | . . . . . . . . . . . . . . . . . . . . Trap Hack Attempts . | . . . . . . . . . . . . . . . . . . . . Triggered . | . . . . . . . . . . . . . . . . . . . . Disarmed . | . . . . . . . . . . . . . . . . . . . . Reprogrammed . | . . . . . . . . . . . . . . . . . . . . Reused . | . . . . . . . . . . . . . . . . . . . . Traps Extracted . | . . . . . . . . . . . . . . . . . . . . Installed . | . . . . . . . . . . . . . . . . . . . . Triggered . | . . . . . . . . . . . . . . . . . . . . Machines | -11 -10 -10 -10 -9 -8 -8 -8 -8 -7 -6 -6 -5 -5 -5 -5 -4 -4 -3 -3 ---------- Run | Yrd Mat Min Exi Min Mat Gar Mat Gar Fac Fac DSF Fac Upp Upp War Pro Fac Res Tes Machines Disabled 25 | . . . . . 1 7 2 6 1 . . 1 . . 1 . 3 1 2 Max in Single Turn 3 | . . . . . 1 2 2 1 1 . . 1 . . 1 . 3 . 1 Garrison Access 2 | . . . . . . . . . 1 . . . . . . . . 1 . Garrison Relay 10 | . . . . . . 4 . 6 . . . . . . . . . . . Phase Generator 1 | . . . . . . 1 . . . . . . . . . . . . . Machines Repaired . | . . . . . . . . . . . . . . . . . . . . Machines Dismantled 1 | . . . . . . . . . . . . . . . 1 . . . . Machines Sabotaged . | . . . . . . . . . . . . . . . . . . . . Overloaded Fab Kills . | . . . . . . . . . . . . . . . . . . . . Hacking | -11 -10 -10 -10 -9 -8 -8 -8 -8 -7 -6 -6 -5 -5 -5 -5 -4 -4 -3 -3 --------- Run | Yrd Mat Min Exi Min Mat Gar Mat Gar Fac Fac DSF Fac Upp Upp War Pro Fac Res Tes Machines Accessed 36 | . 3 . 2 1 5 3 2 4 5 1 . 2 . 1 1 . . 3 3 Terminals 24 | . 3 . . . 4 3 1 4 2 1 . 2 . 1 . . . 2 1 Fabricators 2 | . . . . . . . . . 2 . . . . . . . . . . Repair Stations 1 | . . . . . . . . . . . . . . . . . . . 1 Recycling Units . | . . . . . . . . . . . . . . . . . . . . Scanalyzers . | . . . . . . . . . . . . . . . . . . . . Garrison Access 5 | . . . . . 1 . 1 . 1 . . . . . . . . 1 1 Total Hacks 77 | . 10 . 2 1 12 8 4 5 10 2 . 5 . 1 1 . . 9 7 Successful 30 | . 5 . 2 1 5 2 2 3 3 1 . 2 . 1 1 . . 1 1 Failed 47 | . 5 . . . 7 6 2 2 7 1 . 3 . . . . . 8 6 Catastrophic 9 | . . . . . 3 1 . . 1 . . 1 . . . . . 1 2 Database Lockouts . | . . . . . . . . . . . . . . . . . . . . Manual 27 | . 11 . 1 . 5 . 2 . 4 . . 4 . . . . . . . Terminals 56 | . 10 . . . 10 8 2 5 5 2 . 5 . 1 . . . 5 3 Fabricators 2 | . . . . . . . . . 2 . . . . . . . . . . Repair Stations 3 | . . . . . . . . . . . . . . . . . . . 3 Recycling Units . | . . . . . . . . . . . . . . . . . . . . Scanalyzers . | . . . . . . . . . . . . . . . . . . . . Garrison Access 12 | . . . . . 2 . 2 . 3 . . . . . . . . 4 1 Terminal Hacks 20 | . 3 . 2 1 2 2 . 3 . 1 . 2 . 1 1 . . 1 1 Record 2 | . . . 1 . . . . . . . . . . 1 . . . . . Open Door 4 | . . . . 1 . 1 . 1 . . . . . . 1 . . . . Open DSF 1 | . . . . . . . . . . 1 . . . . . . . . . Level Access Points 2 | . . . . . . . . . . . . 1 . . . . . 1 . Branch Access Points 1 | . . . . . . . . . . . . 1 . . . . . . . Emergency Access Points 3 | . . . . . . 1 . 1 . . . . . . . . . . 1 Registered Components 2 | . 1 . . . 1 . . . . . . . . . . . . . . Zone Layout 3 | . 2 . . . 1 . . . . . . . . . . . . . . Patrol Navigation 1 | . . . . . . . . 1 . . . . . . . . . . . Proto ID Catalog 1 | . . . 1 . . . . . . . . . . . . . . . . Fabricator Hacks 2 | . . . . . . . . . 2 . . . . . . . . . . Build 2 | . . . . . . . . . 2 . . . . . . . . . . Repair Station Hacks . | . . . . . . . . . . . . . . . . . . . . Recycling Unit Hacks . | . . . . . . . . . . . . . . . . . . . . Scanalyzer . | . . . . . . . . . . . . . . . . . . . . Garrison Access Hacks 2 | . . . . . 1 . 1 . . . . . . . . . . . . Unlock Access 2 | . . . . . 1 . 1 . . . . . . . . . . . . Unauthorized Hacks 6 | . 2 . . . 2 . 1 . 1 . . . . . . . . . . Terminals 6 | . 2 . . . 2 . 1 . 1 . . . . . . . . . . Botnet 6 | . 2 . . . 2 . 1 . 1 . . . . . . . . . . Fabricators . | . . . . . . . . . . . . . . . . . . . . Repair Stations . | . . . . . . . . . . . . . . . . . . . . Recycling Units . | . . . . . . . . . . . . . . . . . . . . Scanalyzers . | . . . . . . . . . . . . . . . . . . . . Garrison Access . | . . . . . . . . . . . . . . . . . . . . Data Cores Recovered 1 | . . . . . . . . . . . . 1 . . . . . . . Used 1 | . . . . . . . . . . . . 1 . . . . . . . Hacking Detections 25 | . 1 . . . 4 2 2 3 5 1 . 1 . . . . . 3 3 Full Trace Events 6 | . . . . . . . . . 2 . . . . . . . . 3 1 Feedback Events . | . . . . . . . . . . . . . . . . . . . . Feedback Blocked . | . . . . . . . . . . . . . . . . . . . . Robot Schematics Acquired . | . . . . . . . . . . . . . . . . . . . . Robots Built . | . . . . . . . . . . . . . . . . . . . . Authchips . | . . . . . . . . . . . . . . . . . . . . Time . | . . . . . . . . . . . . . . . . . . . . Total Robot Build Rating . | . . . . . . . . . . . . . . . . . . . . Part Schematics Acquired . | . . . . . . . . . . . . . . . . . . . . Parts Built 4 | . . . . . . . . . 4 . . . . . . . . . . Authchips . | . . . . . . . . . . . . . . . . . . . . Time 84 | . . . . . . . . . 84 . . . . . . . . . . Total Part Build Rating 22 | . . . . . . . . . 22 . . . . . . . . . . Parts Repaired . | . . . . . . . . . . . . . . . . . . . . Time . | . . . . . . . . . . . . . . . . . . . . Parts Recycled . | . . . . . . . . . . . . . . . . . . . . Recycled Matter . | . . . . . . . . . . . . . . . . . . . . Retrieved Matter . | . . . . . . . . . . . . . . . . . . . . Retrieved Components . | . . . . . . . . . . . . . . . . . . . . Parts Scanalyzed . | . . . . . . . . . . . . . . . . . . . . Part Schematics Acquired . | . . . . . . . . . . . . . . . . . . . . Parts Damaged . | . . . . . . . . . . . . . . . . . . . . Bothacking | -11 -10 -10 -10 -9 -8 -8 -8 -8 -7 -6 -6 -5 -5 -5 -5 -4 -4 -3 -3 ------------ Run | Yrd Mat Min Exi Min Mat Gar Mat Gar Fac Fac DSF Fac Upp Upp War Pro Fac Res Tes Used RIF Installer . | . . . . . . . . . . . . . . . . . . . . Robots Hacked . | . . . . . . . . . . . . . . . . . . . . Non-combat . | . . . . . . . . . . . . . . . . . . . . Combat . | . . . . . . . . . . . . . . . . . . . . Robot Hacks Applied . | . . . . . . . . . . . . . . . . . . . . Relay Couplers Released 37 | . . . . . . 13 . 20 2 . . . . . . . . 2 . Machine Destruction 37 | . . . . . . 13 . 20 2 . . . . . . . . 2 . Fabnet Peak Effective % . | . . . . . . . . . . . . . . . . . . . . Robots Rewired 12 | . . . . . . 3 . 9 . . . . . . . . . . . Allies Hacked . | . . . . . . . . . . . . . . . . . . . . Hacks Repelled . | . . . . . . . . . . . . . . . . . . . . Allies | -11 -10 -10 -10 -9 -8 -8 -8 -8 -7 -6 -6 -5 -5 -5 -5 -4 -4 -3 -3 -------- Run | Yrd Mat Min Exi Min Mat Gar Mat Gar Fac Fac DSF Fac Upp Upp War Pro Fac Res Tes Total Allies 16 | . . 3 . . . 3 . 9 . . . . . . . . 1 . . Largest Group 4 | . . 3 3 3 1 3 . 4 2 . . . . . . . 1 . . Highest-Rated Group 84 | . . 40 40 40 16 60 . 84 48 . . . . . . . 9 . . Highest-Rated Ally 31 | . . 16 16 16 16 20 . 31 24 . . . . . . . 9 . . Initial Warlord ECA Mod 272 | . . . . . . . 9 9 18 17 17 26 26 26 26 25 25 24 24 Total Orders . | . . . . . . . . . . . . . . . . . . . . Ally Attacks 368 | . . . . 24 8 6 . 38 27 . . . . 22 . 4 15 224 . Total Damage 7785 | . . . . 294 100 301 . 729 638 . . . . 1102 . 163 561 3897 . Kills 53 | . . . . 4 1 2 . 8 6 . . . . 6 . 2 4 20 . Allies Corrupted 1 | . . . . . . . . 1 . . . . . . . . . . . Allies Melted 3 | . . . . . . . . 1 . . . . . . 2 . . . . Turrets Deployed 3 | . . . . . . . . . . . . . . 1 . 1 1 . . Intel | -11 -10 -10 -10 -9 -8 -8 -8 -8 -7 -6 -6 -5 -5 -5 -5 -4 -4 -3 -3 ------- Run | Yrd Mat Min Exi Min Mat Gar Mat Gar Fac Fac DSF Fac Upp Upp War Pro Fac Res Tes Active Infowar (turns) 5437 | 49 220 150 401 891 129 . . . 687 3 327 415 297 420 962 481 4 . 1 Sensors 3593 | . . . . . . . . . 687 3 327 415 297 420 962 481 . . 1 Seismic 1840 | 49 220 150 401 891 129 . . . . . . . . . . . . . . Cloaking 5 | . . . . . . . . . . . . . . . 1 . 4 . . Robot Analysis Total . | . . . . . . . . . . . . . . . . . . . . Derelict Logs Recovered 5 | . . 2 . 1 . . . . . . . . 1 1 . . . . . Drone Launches 46 | . . . . . . . . . . . . . . . . . 16 30 . Drone Recoveries . | . . . . . . . . . . . . . . . . . . . . Exploration | -11 -10 -10 -10 -9 -8 -8 -8 -8 -7 -6 -6 -5 -5 -5 -5 -4 -4 -3 -3 ------------- Run | Yrd Mat Min Exi Min Mat Gar Mat Gar Fac Fac DSF Fac Upp Upp War Pro Fac Res Tes Turns Passed 12740 | 114 220 150 401 891 689 1871 736 2288 892 3 327 415 297 420 1004 657 460 295 610 Spaces Moved 6029 | 62 154 147 354 338 238 675 265 742 393 3 199 303 197 303 627 311 214 173 331 Core 95 | 16 . . . . . . . . . . . . . . . . 4 . 75 Treads 1586 | 46 56 . 101 338 238 675 112 . . . . . . . . 20 . . . Legs 1559 | . . . . . . . 43 742 222 . . . . . . 61 83 154 254 Wheels 2789 | . 98 147 253 . . . 110 . 171 3 199 303 197 303 627 230 127 19 2 Hover . | . . . . . . . . . . . . . . . . . . . . Flight . | . . . . . . . . . . . . . . . . . . . . Fastest Speed 50 | 50 80 80 80 160 240 240 195 185 135 135 130 130 115 115 115 115 99 99 50 Average Speed 169 | 131 109 80 106 251 240 240 221 226 191 135 142 130 115 115 115 163 156 128 105 Slowest Speed 1200 | 160 160 80 160 320 240 240 240 265 265 135 145 130 115 115 130 400 1200 170 260 Overloaded Moves . | . . . . . . . . . . . . . . . . . . . . Propulsion Burnouts . | . . . . . . . . . . . . . . . . . . . . Robots Hopped . | . . . . . . . . . . . . . . . . . . . . Potential Cave-ins . | . . . . . . . . . . . . . . . . . . . . Cave-ins Triggered . | . . . . . . . . . . . . . . . . . . . . Exploration Rate (%) 43 | 4 36 41 69 46 27 79 28 90 12 . 94 10 37 52 78 59 13 7 39 Regions Visited 19 Branch Regions 8 Pre-discovered Areas 2 | . . . 1 . . . . . . . . . 1 . . . . . . Known Exits Taken 9 | . . . . . 1 . 1 . 1 1 . 1 1 1 1 1 . . . Unknown Exits Taken 7 | 1 1 1 1 1 . . . . . . . . . . . . 1 1 . Scrap Searched 9 | . . . . 3 . . . . . . . . 2 4 . . . . . Spaces Dug 4 | . . . . . . . . . . . . 2 2 . . . . . . Terrain Destroyed 204 | . . . . . 9 71 . 1 3 . 3 2 7 4 53 45 6 . . Melee . | . . . . . . . . . . . . . . . . . . . . Projectile 56 | . . . . . . . . 1 1 . 2 2 7 4 20 18 1 . . AOE 148 | . . . . . 9 71 . . 2 . 1 . . . 33 27 5 . . Terrain Rammed . | . . . . . . . . . . . . . . . . . . . . Walls Destroyed . | . . . . . . . . . . . . . . . . . . . . Machines Disabled . | . . . . . . . . . . . . . . . . . . . . Actions | -11 -10 -10 -10 -9 -8 -8 -8 -8 -7 -6 -6 -5 -5 -5 -5 -4 -4 -3 -3 --------- Run | Yrd Mat Min Exi Min Mat Gar Mat Gar Fac Fac DSF Fac Upp Upp War Pro Fac Res Tes Total 8071 | 89 201 179 381 380 314 832 386 1216 498 2 239 322 252 363 869 424 333 250 541 Wait 1075 | 5 41 32 6 34 10 45 77 183 42 . 1 10 36 46 180 81 58 37 151 Move 6012 | 61 153 146 353 337 238 674 265 741 392 2 198 302 196 302 626 310 213 172 331 Hop . | . . . . . . . . . . . . . . . . . . . . Pick Up 168 | 12 2 1 8 6 18 13 8 22 11 . 8 4 2 4 13 1 6 17 12 Fast Attach 16 | . . . . . 3 . 2 2 5 . 3 . . . . . 1 . . Attach 94 | 7 . . . . 4 2 3 17 2 . 4 1 3 2 5 5 11 16 12 Detach 12 | . . . . . 1 . . 1 1 . 1 . . . . . 3 3 2 Swap 65 | . 2 . 4 1 5 10 5 14 5 . 2 1 2 1 9 1 3 . . Drop 118 | 1 . . 10 2 13 11 11 15 15 . 13 2 1 2 11 1 4 4 2 Fire 296 | 3 3 . . . 22 55 15 86 25 . 9 2 12 6 17 25 13 . 3 Melee 38 | . . . . . . . . . . . . . . . . . 13 1 24 Ram 2 | . . . . . . . . . . . . . . . . . . . 2 Kick 2 | . . . . . . . . . . . . . . . . . . . 2 Crush . | . . . . . . . . . . . . . . . . . . . . Escape Stasis 66 | . . . . . . 8 . 50 . . . . . . . . 8 . . Rewire 99 | . . . . . . 14 . 85 . . . . . . . . . . . Trap . | . . . . . . . . . . . . . . . . . . . . Miscellaneous 8 | . . . . . . . . . . . . . . . 8 . . . . Route ------- -11/Scrapyard -10/Materials (discovered 2 exits: [*Mat] / [*Min]) -10/Mines (discovered 2 exits: [*Mat] / *Exi) -10/Exiles -9/Mines -8/Materials (discovered 3 exits: Fac / Sto / Gar) -8/Garrison (discovered 3 exits: *Mat x3) -8/Materials (discovered 2 exits: Sto / Gar) -8/Garrison (discovered 4 exits: *Fac x3 / [*Mat]) -7/Factory -6/Factory -6/DSF -5/Factory (discovered 8 exits: Fac x4 / *Upp x2 / Ext x2) -5/Upper Caves -5/Upper Caves -5/Warlord -4/Proximity Caves -4/Factory -3/Research (discovered 4 exits: Res x3 / *Tes) -3/Testing History --------- Turn | Location | Event 8 | -11/Scrapyard | Discovered new exit (range 16) 115 | -11/Scrapyard | Entered Materials 233 | -10/Materials | Met 8R-AWN 266 | -10/Materials | Discovered new exit (range 8) 300 | -10/Materials | Discovered new exit (range 12) 313 | -10/Materials | Build established: Mutant 335 | -10/Materials | Entered Mines 336 | -10/Mines | Followed 8R-AWN into the Mines 337 | -10/Mines | Discovered new exit (range 8) 345 | -10/Mines | Assisted by bots powering up and referring to "LRC-V3" 428 | -10/Mines | Found a Scrap Suit stashed away for nefarious purposes 430 | -10/Mines | Found Scrap Suit 458 | -10/Mines | Discovered new exit (range 5) 485 | -10/Mines | Entered Exiles 485 | -10/Exiles | Accompanied by 3 allies 504 | -10/Exiles | Welcomed by 8R-AWN 518 | -10/Exiles | Met EX-HEX 571 | -10/Exiles | Met EX-DEC 590 | -10/Exiles | Learned location of Zion (-7) 664 | -10/Exiles | Met EX-BIN 677 | -10/Exiles | Aligned with FarCom system 678 | -10/Exiles | Given EX-Vault access code 700 | -10/Exiles | Opened EX-Vault 706 | -10/Exiles | Found AWS/Autocannon 716 | -10/Exiles | Found Army-in-a-Box 724 | -10/Exiles | Found Deploy-a-Sentry 726 | -10/Exiles | Found Deploy-a-Sentry 729 | -10/Exiles | Found Deploy-a-Sentry 763 | -10/Exiles | Warned to stay clear of 0b10 Research branches 861 | -10/Exiles | Discovered new exit (range 14) 886 | -10/Exiles | Stole three prototypes: Army-in-a-Box, AWS/Autocannon, Deploy-a-Sentry 886 | -10/Exiles | Entered Mines 886 | -9/Mines | Accompanied by 3 allies 888 | -9/Mines | Met a Derelict bent on vengeance 993 | -9/Mines | Found the Drone Emporium 1005 | -9/Mines | Learned location of 1 exit from Materials 1009 | -9/Mines | Found Prototype Device 1748 | -9/Mines | Discovered new exit (range 9) 1777 | -9/Mines | Entered Materials 1777 | -8/Materials | Accompanied by 1 ally 1777 | -8/Materials | Evolved 4 slots: Propulsion x2, Weapon x2 1778 | -8/Materials | Identified exit to Storage 1779 | -8/Materials | Identified exit to Factory 2393 | -8/Materials | Build established: Skirmisher 2404 | -8/Materials | Garrison activated, responded to threat 2466 | -8/Materials | Identified exit to Garrison 2466 | -8/Materials | Entered Garrison 2540 | -8/Garrison | Triggered checkpoint 2568 | -8/Garrison | Garrison Relay disabled 2748 | -8/Garrison | Build established: Scavenger-Skirmisher 2958 | -8/Garrison | Discovered new exit (range 11) 3028 | -8/Garrison | Triggered checkpoint 3079 | -8/Garrison | Garrison Relay disabled 3390 | -8/Garrison | Triggered checkpoint 3442 | -8/Garrison | Triggered checkpoint 3545 | -8/Garrison | Discovered new exit (range 9) 3566 | -8/Garrison | Triggered checkpoint 3623 | -8/Garrison | Garrison Relay disabled 3790 | -8/Garrison | Triggered checkpoint 3843 | -8/Garrison | Garrison Relay disabled 3935 | -8/Garrison | Discovered new exit (range 8) 4228 | -8/Garrison | Phase Generator disabled 4337 | -8/Garrison | Entered Materials 5073 | -8/Materials | Identified exit to Garrison 5073 | -8/Materials | Entered Garrison 5288 | -8/Garrison | Garrison Relay disabled 5391 | -8/Garrison | Triggered checkpoint 5497 | -8/Garrison | Triggered checkpoint 5596 | -8/Garrison | Garrison Relay disabled 5735 | -8/Garrison | Core integrity fell below 50% 5867 | -8/Garrison | Discovered exit to Factory (range 10) 5907 | -8/Garrison | Triggered checkpoint 5969 | -8/Garrison | Triggered checkpoint 5979 | -8/Garrison | Garrison Relay disabled 5999 | -8/Garrison | Core integrity fell below 20% 6026 | -8/Garrison | Lost 5 parts (1p1n3w) 6325 | -8/Garrison | Triggered checkpoint 6369 | -8/Garrison | Triggered checkpoint 6447 | -8/Garrison | Discovered exit to Factory (range 13) 6575 | -8/Garrison | Lost 3 allies 6665 | -8/Garrison | Triggered checkpoint 6702 | -8/Garrison | Garrison Relay disabled 6805 | -8/Garrison | Triggered checkpoint 6848 | -8/Garrison | Discovered new exit (range 3) 7108 | -8/Garrison | Garrison Relay disabled 7159 | -8/Garrison | Triggered checkpoint 7234 | -8/Garrison | Garrison Relay disabled 7284 | -8/Garrison | Discovered exit to Factory (range 14) 7361 | -8/Garrison | Entered Factory 7361 | -7/Factory | Accompanied by 2 allies 7361 | -7/Factory | Evolved 2 slots: Utility x2 7363 | -7/Factory | FarCom data flow suspended 7398 | -7/Factory | Garrison activated, responded to threat 7761 | -7/Factory | First assault squad dispatched 8036 | -7/Factory | Fabricated Force Field (x2) 8146 | -7/Factory | Fabricated Imp. Coolant Injector? 8201 | -7/Factory | Cargo convoy interrupted 8217 | -7/Factory | Destroyed 8 combat bots 8217 | -7/Factory | Discovered new exit (range 8) 8230 | -7/Factory | Identified exit to Factory 8253 | -7/Factory | Entered another Factory area 8253 | -6/Factory | Evolved 2 slots: Utility x2 8256 | -6/Factory | Identified exit to DSF 8256 | -6/Factory | Entered DSF 8257 | -6/DSF | Joined Warlord attack on 0b10 via DSF 8285 | -6/DSF | Additional patrols routed to DSF 8287 | -6/DSF | Discovered new exit (range 16) 8298 | -6/DSF | Found Imp. Powered Armor 8300 | -6/DSF | Found Imp. Powered Armor 8325 | -6/DSF | Lost 5 allies 8564 | -6/DSF | Sterilization system engaged 8581 | -6/DSF | Identified exit to Factory 8583 | -6/DSF | Entered Factory 8583 | -5/Factory | Evolved 2 slots: Propulsion x2 8618 | -5/Factory | Build established: Tank 8783 | -5/Factory | Identified exit to Factory 8783 | -5/Factory | Identified exit to Upper Caves 8783 | -5/Factory | Identified exit to Extension 8998 | -5/Factory | Entered Upper Caves 9012 | -5/Upper Caves | AWS/Autocannon suddenly broke down 9027 | -5/Upper Caves | Learned Factory stockpile data 9061 | -5/Upper Caves | Met a Warlord Commander 9062 | -5/Upper Caves | Learned location of Warlord (-5) 9063 | -5/Upper Caves | Warlord Commander delivered Encrypted Comm Array 9069 | -5/Upper Caves | Found Encrypted Comm Array 9277 | -5/Upper Caves | Discovered new exit (range 15) 9292 | -5/Upper Caves | Identified exit to Upper Caves 9295 | -5/Upper Caves | Entered another Upper Caves area 9304 | -5/Upper Caves | DAS Turret deployed 9528 | -5/Upper Caves | Attracted the attention of an 0b10 checkpoint 9597 | -5/Upper Caves | Identified exit to Warlord 9715 | -5/Upper Caves | Entered Warlord 9753 | -5/Warlord | System corruption cleaned by Quarantine Array 9827 | -5/Warlord | Met Warlord 9852 | -5/Warlord | Warlord's base attacked by MAIN.C 9920 | -5/Warlord | Found Prototype Device 9926 | -5/Warlord | Identified Exp. Focal Shield 9929 | -5/Warlord | Found Prototype Processor 9933 | -5/Warlord | Found Prototype Hackware 9939 | -5/Warlord | Found Prototype Device 9940 | -5/Warlord | Identified Exp. Cloaking Device 10058 | -5/Warlord | Identified Exp. Target Analyzer 10059 | -5/Warlord | Found Prototype Energy Gun 10063 | -5/Warlord | Found Prototype Energy Gun 10067 | -5/Warlord | Found Prototype Energy Gun 10069 | -5/Warlord | Found Prototype Energy Gun 10202 | -5/Warlord | Warlord forces counterattacked 10320 | -5/Warlord | Lost 3 allies 10324 | -5/Warlord | Identified Vortex Shotgun (x2) 10325 | -5/Warlord | Identified Vortex Rifle (x2) 10349 | -5/Warlord | Spotted Striker 10365 | -5/Warlord | Build established: Skirmisher 10414 | -5/Warlord | Spotted Executioner 10438 | -5/Warlord | Destroyed Executioner 10454 | -5/Warlord | Lost 14 allies 10464 | -5/Warlord | Destroyed 7 combat bots 10527 | -5/Warlord | Warlord base infiltrated, sounded retreat 10644 | -5/Warlord | Spotted Executioner 10661 | -5/Warlord | Spotted B-75 Beast 10661 | -5/Warlord | Spotted B-86 Titan 10663 | -5/Warlord | Spotted Executioner 10671 | -5/Warlord | Destroyed Executioner 10681 | -5/Warlord | Discovered new exit (range 15) 10703 | -5/Warlord | Identified exit to Proximity Caves 10712 | -5/Warlord | Lost 3 parts (1p1n1w) 10719 | -5/Warlord | Entered Proximity Caves 10953 | -4/Proximity Caves | Lost 3 parts (1n2w) 11053 | -4/Proximity Caves | Build established: Mutant 11258 | -4/Proximity Caves | DAS Turret deployed 11353 | -4/Proximity Caves | Discovered exit to Factory (range 9) 11376 | -4/Proximity Caves | Entered Factory 11376 | -4/Factory | Evolved 2 slots: Power x2 11562 | -4/Factory | DAS Turret deployed 11595 | -4/Factory | Identified System Mapper 11599 | -4/Factory | Identified Decoy Drone Bay 11668 | -4/Factory | Lost 10 allies 11814 | -4/Factory | Discovered new exit (range 6) 11836 | -4/Factory | Entered Research 11836 | -3/Research | Evolved 2 slots: Utility x2 11901 | -3/Research | Build established: Hacker-Mutant 11952 | -3/Research | Identified exit to Research 11988 | -3/Research | Spotted B-86 Titan 12056 | -3/Research | Lost 12 parts (7n3u2w) 12067 | -3/Research | System corruption reached 10% 12073 | -3/Research | Allies destroyed B-86 Titan 12123 | -3/Research | Discovered new exit (range 7) 12131 | -3/Research | Entered Testing 12153 | -3/Testing | Lost 30 allies 12325 | -3/Testing | Build established: Mutant 12590 | -3/Testing | Found Prototype Ballistic Gun 12621 | -3/Testing | Core integrity fell below 50% 12710 | -3/Testing | Core integrity fell below 20% 12732 | -3/Testing | Lost 7 parts (5n2u) 12741 | -3/Testing | Destroyed by S-43 Plague with Heavy Machine Gun Last Messages --------------- effect. 12688_ P-80 Master knocked back. 12693_ System corrupted: Matter fused (-8). 12694_ Destroyed Imp. Antigrav System. 12694_ P-80 Master system corrupted by crushing effect. 12695_ Centrium Wheel destroyed. 12699_ P-80 Master resets P-80 Master, system corruption cleaned. 12700_ Dropped Hcp. Storage Unit. 12701_ Imp. Reaction Control System destroyed. 12702_ Slammed into P-80 Master. 12703_ P-80 Master IFF system glitched. 12706_ P-80 Master resets P-80 Master, system corruption cleaned. 12707_ P-80 Master resets A-15 Conveyor, system corruption cleaned. 12712_ K-01 Serf destroyed. 12717_ NS8BWOP1IMDL||9NAUFD3GB=H|MEOCVW 12733_ System corrupted: Matter fused (-8). Map ----- +----------------------------------------------------+ | | | | | | | | | | | | | ?????????????????????????????????????????????????? | | ?????????????????????????????????????????????????? | | ?????????????????????????????????????????????????? | | ?????????????????????????????????????????????????? | | ?????????????????????????????????????????????????? | | ?????????????????????????????????????????????????? | | ?????????????????????????????????????????????????? | | ????????????????############???????##????????????? | | ????????????????# # ?????? #????????????? | | ????????????????# ""G"" # """"" #????????????? | | ????????????????# " " # """"" #????????????? | | ????????????????# " " # """"" ?????????????? | | ????????????????# # ?????????????? | | ????????????????# # """ """ #????????????? | | ????????????????# # """S""" #????????????? | | ????????????????# # #????????????? | | ??????????###########+######+###########?????????? | | ??????????# #???#""#?????????? | | ??????????# ##""" #?????????? | | ??????????# ss @ #" "#?????????? | | ??????????# s #" ""#?????????? | | ???????#######/############# #" "#?????????? | | ???????# #??????????# # #?????????? | | ???????# """ #??????????# ###+####?????????? | | ???????# """ #######????# #?????????? | | ???????# """ / #????# #?????????? | | ???????# ##### #????# #?????????? | | ???????# " " #???# #????# #?????????? | | ???????# ""R"" #???# #????######## #?????????? | | ???????# """"" #???# #???????????# #?????????? | | ???????#! #???# #???????????# #?????????? | | ???????##########???# #???????????/ #?????????? | | ???????????????????##/####????????# #?????????? | | ???????????????##### #????????? #?????????? | | ???????????????# # #????????? #?????????? | | ???????????????# # """ #????????? #?????????? | | ?????????????### # """ #????????? #?????????? | | ?????????????# # """ #????????? #?????????? | | ??????????#### T" # #????????? ??????????? | | ????###???# " / """ #?????????? ????????????? | | ????"""#??# ## # """ #???????????????????????? | | ???? ""#??# ## # """ #???????????????????????? | | ##"" ""####/#### ### #???????????????????????? | | #" """##! # #?# #???????????????????????? | +----------------------------------------------------+ Best States ------------- Heat Dissipation 46 Energy Generation 21 Energy Capacity 770 Matter Stores 300 Matter Capacity 500 Sight Range 16 Robot Scan Range 15 Terrain Scan Density 10 Armor Coverage 675 Resistance: KI 20 Resistance: TH 10 Evasion (%) 70 Target Analysis 10 Recoil Reduction 4 Offensive Hacking 20 Authchip Count 4 Item Schematics ----------------- None Robot Schematics ------------------ None Fabricated ------------ Force Field | x2 | -7/Factory | Preloaded Imp. Coolant Injector | x2 | -7/Factory | Preloaded Repaired ---------- Nothing Alien Tech Used ----------------- None Achievements -------------- None Challenges ------------ None Game ------ Seed GuidedTeslaMicroactuators Manual? 0 Play Time 01:49:02 Cumulative 228.9 hours Start 2025.08.29 @ 13:39:53 End 2025.08.29 @ 15:54:13 Sessions 1 Manual Loads 0 Difficulty Rogue Special Mode None Game No. 333 Rogue 333 Adventurer 0 Explorer 0 Win Type - Total 4 Types 3/0/1/0/0/0/0/0/0/0 Lore% 81 Gallery% 76 Achievement% 58 Wizard Run 0 Options --------- Layout 1 ASCII 0 Keyboard 0 Movement Mouse Keybinds 0 Fullscreen 1 Font 24/Smallcaps Map View 50x40 Zoom Use 0% Tactical HUD 1 Map Filters NONE Filters NONE Steam 1 RUN: 18db5454-a368-489f-add2-15bf391c4286